fUSD/lending_fUSD_20240630
["ID","MTS","AMOUNT","RATE_DAILY","PERIOD"]
[330688240,1719711058538,-500.0,0.00013917,3]
[330688241,1719711058549,-2333.23,0.00013917,3]
[330688242,1719711058560,-2346.07,0.00013917,3]
[330688243,1719711058570,-500.0,0.00013917,3]
[330688244,1719711058580,-973.19,0.00013917,3]
[330688245,1719711058595,-500.0,0.00013917,3]
[330688246,1719711058606,-737.96,0.00013917,3]
[330688247,1719711058615,-681.0,0.00013917,3]
[330688248,1719711058624,-500.0,0.00013917,3]
[330688249,1719711058635,-500.0,0.00013917,3]
[330688250,1719711058645,-2093.74,0.00013917,3]
[330688251,1719711058654,-500.0,0.00013917,3]
[330688252,1719711058663,-500.0,0.00013917,3]
[330688253,1719711058674,-500.0,0.00013917,3]
[330688254,1719711058683,-500.0,0.00013917,3]
[330688255,1719711058692,-741.16,0.00013917,3]
[330688256,1719711058702,-1584.98,0.00013917,3]
[330688257,1719711058711,-517.54,0.00013917,3]
[330688258,1719711058720,-500.0,0.00013917,3]
[330688259,1719711058730,-17519.3,0.00013917,3]
[330688260,1719711058739,-500.0,0.00013917,3]
[330688261,1719711058748,-2255.93,0.00013917,3]
[330688262,1719711058757,-500.0,0.00013917,3]
[330688263,1719711058766,-730.7,0.00013917,3]
[330688264,1719711058775,-2373.06,0.00013917,3]
[330688265,1719711058784,-733.6,0.00013917,3]
[330688266,1719711058793,-1366.43,0.00013917,3]
[330688267,1719711058802,-500.0,0.00013917,3]
[330688268,1719711058811,-1233.97,0.00013917,3]
[330688269,1719711058820,-500.0,0.00013917,3]
[330688270,1719711058830,-151.0,0.00013917,2]
[330688271,1719711058839,-151.0,0.00013917,2]
[330688272,1719711058849,-973.08,0.00013917,3]
[330688273,1719711058858,-500.0,0.00013917,3]
[330688274,1719711058867,-151.0,0.00013917,2]
[330688275,1719711058877,-500.0,0.00013917,3]
[330688276,1719711058889,-2224.15,0.00013917,3]
[330688277,1719711058899,-500.0,0.00013917,3]
[330688278,1719711058908,-565.49,0.00013917,3]
[330688279,1719711058918,-500.0,0.00013917,3]
[330688280,1719711058927,-1453.68,0.00013917,3]
[330688281,1719711058936,-1103.39,0.00013917,3]
[330688282,1719711058946,-500.0,0.00013917,3]
[330688283,1719711058955,-500.0,0.00013917,3]
[330688284,1719711058964,-500.0,0.00013917,3]
[330688285,1719711058974,-500.0,0.00013917,3]
[330688286,1719711058983,-500.0,0.00013917,3]
[330688287,1719711058992,-2749.71,0.00013917,3]
[330688288,1719711059002,-500.0,0.00013917,3]
[330688289,1719711059011,-1470.04,0.00013917,3]
[330688290,1719711059020,-500.0,0.00013917,3]
[330688291,1719711059032,-500.0,0.00013917,3]
[330688292,1719711059042,-1000.06,0.00013917,3]
[330688293,1719711059051,-3074.88,0.00013917,3]
[330688294,1719711059062,-789.6,0.00013917,3]
[330688295,1719711059071,-587.36,0.00013917,3]
[330688296,1719711059082,-1717.46,0.00013917,3]
[330688297,1719711059094,-553.57,0.00013917,3]
[330688298,1719711059105,-538.78,0.00013917,3]
[330688299,1719711059114,-734.77,0.00013917,3]
[330688300,1719711059124,-4030.58,0.00013917,3]
[330688301,1719711059133,-872.59,0.00013917,3]
[330688302,1719711059142,-1619.26,0.00013917,3]
[330688303,1719711059151,-505.1,0.00013917,3]
[330688304,1719711059160,-500.0,0.00013917,3]
[330688305,1719711059170,-500.0,0.00013917,3]
[330688306,1719711059183,-1040.75,0.00013917,3]
[330688307,1719711059192,-1019.73,0.00013917,3]
[330688308,1719711059201,-500.0,0.00013917,3]
[330688309,1719711059211,-500.0,0.00013917,3]
[330688310,1719711059220,-500.0,0.00013917,3]
[330688311,1719711059230,-917.98,0.00013917,3]
[330688312,1719711059239,-2026.5,0.00013917,3]
[330688313,1719711059248,-500.0,0.00013917,3]
[330688314,1719711059258,-544.73,0.00013917,3]
[330688315,1719711059267,-500.0,0.00013917,3]
[330688316,1719711059276,-1434.62,0.00013917,3]
[330688317,1719711059286,-914.82,0.00013917,3]
[330688318,1719711059296,-2283.96,0.00013917,3]
[330688319,1719711059306,-853.8,0.00013917,3]
[330688320,1719711059315,-806.6,0.00013917,3]
[330688321,1719711059324,-500.0,0.00013917,3]
[330688322,1719711059333,-990.19,0.00013917,3]
[330688323,1719711059342,-527.87,0.00013917,3]
[330688324,1719711059351,-500.0,0.00013917,3]
[330688325,1719711059360,-555.08,0.00013917,3]
[330688326,1719711059370,-500.0,0.00013917,3]
[330688327,1719711059379,-2932.06,0.00013917,3]
[330688328,1719711059388,-500.0,0.00013917,3]
[330688329,1719711059397,-674.79,0.00013917,3]
[330688330,1719711059406,-1092.71,0.00013917,3]
[330688331,1719711059416,-1430.53,0.00013917,3]
[330688332,1719711059426,-500.0,0.00013917,3]
[330688333,1719711059435,-866.85,0.00013917,3]
[330688334,1719711059444,-500.0,0.00013917,3]
[330688335,1719711059453,-500.0,0.00013917,3]
[330688336,1719711059463,-726.78,0.00013917,3]
[330688337,1719711059472,-668.37,0.00013917,3]
[330688338,1719711059481,-500.0,0.00013917,3]
[330688339,1719711059490,-500.0,0.00013917,3]
[330688340,1719711059499,-804.46,0.00013917,3]
[330688341,1719711059508,-500.0,0.00013917,3]
[330688342,1719711059518,-962.38,0.00013917,3]
[330688343,1719711059530,-623.27,0.00013917,3]
[330688344,1719711059539,-500.0,0.00013917,3]
[330688345,1719711059549,-1151.96,0.00013917,3]
[330688346,1719711059559,-1231.81,0.00013917,3]
[330688347,1719711059568,-572.24,0.00013917,3]
[330688348,1719711059577,-500.0,0.00013917,3]
[330688349,1719711059587,-500.0,0.00013917,3]
[330688350,1719711059599,-500.0,0.00013917,3]
[330688351,1719711059608,-638.38564294,0.00013917,3]
[330688352,1719711059617,-789.18,0.00013917,3]
[330688353,1719711059626,-500.0,0.00013917,3]
[330688354,1719711059636,-500.0,0.00013917,3]
[330688355,1719711059646,-1003.38,0.00013917,3]
[330688356,1719711059656,-2872.85,0.00013917,3]
[330688357,1719711059665,-996.71,0.00013917,3]
[330688358,1719711059674,-500.0,0.00013917,3]
[330688359,1719711059683,-17393.6047018,0.00013927,2]
[330688360,1719711059694,-155.0,0.00013989,2]
[330688361,1719711059703,-6305.8399091,0.00014018,2]
[330688362,1719711059712,-7964.4975432,0.00014018,2]
[330688363,1719711059722,-5000.0,0.00014026,2]
[330688364,1719711059731,-5000.0,0.00014026,3]
[330688365,1719711059740,-5000.0,0.00014026,4]
[330688366,1719711059750,-1219.82225243,0.00014026,5]
[330688367,1719711059759,-1246.57,0.00014027,3]
[330688368,1719711059769,-2620.27,0.00014027,3]
[330688369,1719711059778,-771.15,0.00014027,3]
[330688370,1719711059787,-2420.64,0.00014027,3]
[330688371,1719711059796,-1036.09,0.00014027,3]
[330688372,1719711059806,-2486.42,0.00014027,3]
[330688373,1719711059815,-1825.95,0.00014027,3]
[330688374,1719711059824,-500.0,0.00014027,3]
[330688375,1719711059834,-500.0,0.00014027,3]
[330688376,1719711059843,-500.0,0.00014027,3]
[330688377,1719711059853,-500.0,0.00014027,3]
[330688378,1719711059862,-3712.27,0.00014027,3]
[330688379,1719711059871,-500.0,0.00014027,3]
[330688380,1719711059880,-500.0,0.00014027,3]
[330688381,1719711059891,-500.0,0.00014027,3]
[330688382,1719711059900,-500.0,0.00014027,3]
[330688383,1719711059910,-500.0,0.00014027,3]
[330688384,1719711059919,-568.29337661,0.00014027,3]
[330688385,1719711059928,-3931.77,0.00014027,3]
[330688386,1719711059937,-394.17156698,0.00014027,3]
[330688387,1719711059946,-586.92855175,0.00014027,3]
[330688388,1719711059956,-500.0,0.00014027,3]
[330688389,1719711059965,-500.0,0.00014027,3]
[330688390,1719711059974,-2737.34,0.00014027,3]
[330688391,1719711059984,-500.0,0.00014027,3]
[330688392,1719711059994,-1116.78,0.00014027,3]
[330688393,1719711060003,-500.0,0.00014027,3]
[330688394,1719711060013,-500.0,0.00014027,3]
[330688395,1719711060023,-500.0,0.00014027,3]
[330688396,1719711060032,-500.0,0.00014027,3]
[330688397,1719711060042,-500.0,0.00014027,3]
[330688398,1719711060051,-376.24784152,0.00014027,3]
[330688399,1719711060061,-500.0,0.00014027,3]
[330688400,1719711060070,-2164.74,0.00014027,3]
[330688401,1719711060080,-500.0,0.00014027,3]
[330688402,1719711060089,-500.0,0.00014027,3]
[330688403,1719711060098,-500.0,0.00014027,3]
[330688404,1719711060108,-500.0,0.00014027,3]
[330688405,1719711060117,-500.0,0.00014027,3]
[330688406,1719711060126,-500.0,0.00014027,3]
[330688407,1719711060136,-1569.95,0.00014027,3]
[330688408,1719711060146,-500.0,0.00014027,3]
[330688409,1719711060156,-500.0,0.00014027,3]
[330688410,1719711060166,-4687.88,0.00014027,3]
[330688411,1719711060175,-500.0,0.00014027,3]
[330688412,1719711060184,-500.0,0.00014027,3]
[330688413,1719711060194,-500.0,0.00014027,3]
[330688414,1719711060203,-500.0,0.00014027,3]
[330688415,1719711060213,-500.0,0.00014027,3]
[330688416,1719711060223,-684.17,0.00014027,3]
[330688417,1719711060232,-271.90443738,0.00014027,3]
[330688418,1719711060241,-500.0,0.00014027,3]
[330688419,1719711060251,-500.0,0.00014027,3]
[330688420,1719711060260,-713.16,0.00014027,3]
[330688421,1719711060271,-558.790872,0.00014027,3]
[330688422,1719711060280,-500.0,0.00014027,3]
[330688423,1719711060290,-500.0,0.00014027,3]
[330688424,1719711060299,-500.0,0.00014027,3]
[330688425,1719711060308,-500.0,0.00014027,3]
[330688426,1719711060318,-1295.72,0.00014027,3]
[330688427,1719711060327,-500.0,0.00014027,3]
[330688428,1719711060337,-500.0,0.00014027,3]
[330688429,1719711060347,-500.0,0.00014027,3]
[330688430,1719711060356,-500.0,0.00014027,3]
[330688431,1719711060366,-1900.6,0.00014027,3]
[330688432,1719711060378,-500.0,0.00014027,3]
[330688433,1719711060389,-151.0,0.00014027,2]
[330688434,1719711060399,-500.0,0.00014027,3]
[330688435,1719711060408,-151.0,0.00014027,2]
[330688436,1719711060418,-710.78,0.00014027,3]
[330688437,1719711060430,-500.0,0.00014027,3]
[330688438,1719711060441,-465.82674593,0.00014027,3]
[330688439,1719711060451,-500.0,0.00014027,3]
[330688440,1719711060460,-346.9895076,0.00014027,3]
[330688441,1719711060470,-500.0,0.00014027,3]
[330688442,1719711060479,-1699.63,0.00014027,3]
[330688443,1719711060489,-500.0,0.00014027,3]
[330688444,1719711060498,-500.0,0.00014027,3]
[330688445,1719711060508,-500.0,0.00014027,3]
[330688446,1719711060517,-601.07,0.00014027,3]
[330688447,1719711060527,-500.0,0.00014027,3]
[330688448,1719711060536,-1066.9,0.00014027,3]
[330688449,1719711060546,-500.0,0.00014027,3]
[330688450,1719711060556,-500.0,0.00014027,3]
[330688451,1719711060565,-500.0,0.00014027,3]
[330688452,1719711060574,-832.37,0.00014027,3]
[330688453,1719711060584,-500.0,0.00014027,3]
[330688454,1719711060594,-500.0,0.00014027,3]
[330688455,1719711060608,-500.0,0.00014027,3]
[330688456,1719711060617,-1071.66,0.00014027,3]
[330688457,1719711060627,-500.0,0.00014027,3]
[330688458,1719711060638,-500.0,0.00014027,3]
[330688459,1719711060651,-500.0,0.00014027,3]
[330688460,1719711060661,-500.0,0.00014027,3]
[330688461,1719711060671,-716.2,0.00014027,3]
[330688462,1719711060684,-533.26,0.00014027,3]
[330688463,1719711060695,-761.79,0.00014027,3]
[330688464,1719711060705,-519.14,0.00014027,3]
[330688465,1719711060715,-500.0,0.00014027,3]
[330688466,1719711060725,-500.0,0.00014027,3]
[330688467,1719711060735,-911.02,0.00014027,3]
[330688468,1719711060745,-500.0,0.00014027,3]
[330688469,1719711060755,-663.53,0.00014027,3]
[330688470,1719711060764,-500.0,0.00014027,3]
[330688471,1719711060774,-500.98,0.00014027,3]
[330688472,1719711060783,-1050.04,0.00014027,3]
[330688473,1719711060793,-755.44,0.00014027,3]
[330688474,1719711060802,-1768.33,0.00014027,3]
[330688475,1719711060812,-581.05534237,0.00014027,3]
[330688476,1719711060822,-627.64,0.00014027,3]
[330688477,1719711060831,-500.0,0.00014027,3]
[330688478,1719711060840,-346.41538757,0.00014027,3]
[330688479,1719711060849,-500.0,0.00014027,3]
[330688480,1719711060859,-500.0,0.00014027,3]
[330688481,1719711060868,-500.0,0.00014027,3]
[330688482,1719711060877,-500.0,0.00014027,3]
[330688483,1719711060891,-500.0,0.00014027,3]
[330688484,1719711060903,-588.59316317,0.00014027,3]
[330688485,1719711060913,-644.01,0.00014027,3]
[330688486,1719711060923,-500.0,0.00014027,3]
[330688487,1719711060933,-859.12,0.00014027,3]
[330688488,1719711060942,-889.76,0.00014027,3]
[330688489,1719711060951,-500.0,0.00014027,3]
[330688490,1719711060961,-500.0,0.00014027,3]
[330688491,1719711060971,-500.0,0.00014027,3]
[330688492,1719711060981,-534.75,0.00014027,3]
[330688493,1719711060991,-500.0,0.00014027,3]
[330688494,1719711061001,-436.22741433,0.00014027,3]
[330688495,1719711061011,-500.0,0.00014027,3]
[330688496,1719711061020,-500.0,0.00014027,3]
[330688497,1719711061031,-1138.76,0.00014027,3]
[330688498,1719711061040,-651.9,0.00014027,3]
[330688499,1719711061049,-500.0,0.00014027,3]
[330688500,1719711061058,-500.0,0.00014027,3]
[330688501,1719711061068,-578.29,0.00014027,3]
[330688502,1719711061077,-649.15,0.00014027,3]
[330688503,1719711061087,-721.45,0.00014027,3]
[330688504,1719711061095,-617.2,0.00014027,3]
[330688505,1719711061105,-500.0,0.00014027,3]
[330688506,1719711061115,-500.0,0.00014027,3]
[330688507,1719711061124,-262.6560962,0.00014027,3]
[330688508,1719711061134,-595.24,0.00014027,3]
[330688509,1719711061145,-500.0,0.00014027,3]
[330688510,1719711061155,-500.0,0.00014027,3]
[330688511,1719711061165,-551.62,0.00014027,3]
[330688512,1719711061174,-260.28074658,0.00014027,3]
[330688513,1719711061183,-500.0,0.00014027,3]
[330688514,1719711061191,-500.0,0.00014027,3]
[330688515,1719711061201,-500.0,0.00014027,3]
[330688516,1719711061211,-548.68,0.00014027,3]
[330688517,1719711061220,-500.0,0.00014027,3]
[330688518,1719711061229,-780.35,0.00014027,3]
[330688519,1719711061239,-500.0,0.00014027,3]
[330688520,1719711061248,-500.0,0.00014027,3]
[330688521,1719711061257,-500.0,0.00014027,3]
[330688522,1719711061267,-540.99,0.00014027,3]
[330688523,1719711061276,-500.0,0.00014027,3]
[330688524,1719711061285,-737.39,0.00014027,3]
[330688525,1719711061295,-500.0,0.00014027,3]
[330688526,1719711061304,-517.82,0.00014027,3]
[330688527,1719711061313,-390.61616843,0.00014027,3]
[330688528,1719711061323,-500.0,0.00014027,3]
[330688529,1719711061332,-500.0,0.00014027,3]
[330688530,1719711061342,-500.0,0.00014027,3]
[330688531,1719711061352,-234.676296,0.00014027,3]
[330688532,1719711061361,-500.0,0.00014027,3]
[330688533,1719711061371,-605.18,0.00014027,3]
[330688534,1719711061380,-500.0,0.00014027,3]
[330688535,1719711061390,-600.31,0.00014027,3]
[330688536,1719711061400,-880.06,0.00014027,3]
[330688537,1719711061409,-500.0,0.00014027,3]
[330688538,1719711061419,-500.0,0.00014027,3]
[330688539,1719711061429,-772.55,0.00014027,3]
[330688540,1719711061438,-537.38,0.00014027,3]
[330688541,1719711061565,-1133.19,0.00014027,3]
[330688542,1719711061585,-582.47,0.00014027,3]
[330688543,1719711061596,-500.0,0.00014027,3]
[330688544,1719711061608,-862.26,0.00014027,3]
[330688545,1719711061617,-2714.67,0.00014027,3]
[330688546,1719711061626,-510.91,0.00014027,3]
[330688547,1719711061635,-802.38,0.00014027,3]
[330688548,1719711061648,-500.0,0.00014027,3]
[330688549,1719711061657,-181.71697258,0.00014027,3]
[330688550,1719711061666,-500.0,0.00014027,3]
[330688551,1719711061677,-521.73,0.00014027,3]
[330688552,1719711061686,-500.0,0.00014027,3]
[330688553,1719711061695,-500.0,0.00014027,3]
[330688554,1719711061705,-500.0,0.00014027,3]
[330688555,1719711061714,-2040.84,0.00014027,3]
[330688556,1719711061723,-500.0,0.00014027,3]
[330688557,1719711061733,-532.39,0.00014027,3]
[330688558,1719711061742,-500.0,0.00014027,3]
[330688559,1719711061751,-1265.1,0.00014027,3]
[330688560,1719711061761,-500.0,0.00014027,3]
[330688561,1719711061771,-500.0,0.00014027,3]
[330688562,1719711061781,-500.0,0.00014027,3]
[330688563,1719711061791,-500.0,0.00014027,3]
[330688564,1719711061800,-500.0,0.00014027,3]
[330688565,1719711061810,-952.19,0.00014027,3]
[330688566,1719711061819,-500.0,0.00014027,3]
[330688567,1719711061829,-529.97,0.00014027,3]
[330688568,1719711061838,-588.51,0.00014027,3]
[330688569,1719711061848,-500.0,0.00014027,3]
[330688570,1719711061858,-500.0,0.00014027,3]
[330688571,1719711061867,-691.24,0.00014027,3]
[330688572,1719711061877,-500.0,0.00014027,3]
[330688573,1719711061888,-660.79,0.00014027,3]
[330688574,1719711061898,-500.0,0.00014027,3]
[330688575,1719711061908,-671.71,0.00014027,3]
[330688576,1719711061917,-500.0,0.00014027,3]
[330688577,1719711061927,-311.35378076,0.00014027,3]
[330688578,1719711061937,-500.0,0.00014027,3]
[330688579,1719711061946,-500.0,0.00014027,3]
[330688580,1719711061956,-500.0,0.00014027,3]
[330688581,1719711061966,-1531.98,0.00014027,3]
[330688582,1719711061976,-500.0,0.00014027,3]
[330688583,1719711061985,-548.68,0.00014027,3]
[330688584,1719711061995,-1034.28,0.00014027,3]
[330688585,1719711062004,-500.0,0.00014027,3]
[330688586,1719711062014,-588.83,0.00014027,3]
[330688587,1719711062023,-554.08313327,0.00014027,3]
[330688588,1719711062032,-500.0,0.00014027,3]
[330688589,1719711062041,-538.51,0.00014027,3]
[330688590,1719711062051,-505.71168432,0.00014027,3]
[330688591,1719711062061,-500.0,0.00014027,3]
[330688592,1719711062070,-500.0,0.00014027,3]
[330688593,1719711062080,-527.93,0.00014027,3]
[330688594,1719711062089,-511.23,0.00014027,3]
[330688595,1719711062099,-500.0,0.00014027,3]
[330688596,1719711062108,-500.0,0.00014027,3]
[330688597,1719711062118,-500.0,0.00014027,3]
[330688598,1719711062127,-564.75,0.00014027,3]
[330688599,1719711062137,-599.85,0.00014027,3]
[330688600,1719711062148,-500.0,0.00014027,3]
[330688601,1719711062157,-998.73,0.00014027,3]
[330688602,1719711062167,-879.24,0.00014027,3]
[330688603,1719711062177,-500.0,0.00014027,3]
[330688604,1719711062187,-1046.19,0.00014027,3]
[330688605,1719711062197,-1382.68,0.00014027,3]
[330688606,1719711062206,-500.0,0.00014027,3]
[330688607,1719711062216,-500.0,0.00014027,3]
[330688608,1719711062226,-500.0,0.00014027,3]
[330688609,1719711062235,-500.0,0.00014027,3]
[330688610,1719711062244,-500.0,0.00014027,3]
[330688611,1719711062255,-500.0,0.00014027,3]
[330688612,1719711062265,-500.0,0.00014027,3]
[330688613,1719711062275,-158.298285,0.00014027,2]
[330688614,1719711062284,-1014.61,0.00014027,3]
[330688615,1719711062294,-500.0,0.00014027,3]
[330688616,1719711062304,-500.0,0.00014027,3]
[330688617,1719711062314,-500.0,0.00014027,3]
[330688618,1719711062324,-500.0,0.00014027,3]
[330688619,1719711062334,-500.0,0.00014027,3]
[330688620,1719711062345,-500.0,0.00014027,3]
[330688621,1719711062356,-500.0,0.00014027,3]
[330688622,1719711062366,-500.0,0.00014027,3]
[330688623,1719711062376,-1918.33,0.00014027,3]
[330688624,1719711062386,-500.0,0.00014027,3]
[330688625,1719711062397,-1152.62,0.00014027,3]
[330688626,1719711062408,-500.0,0.00014027,3]
[330688627,1719711062418,-672.21,0.00014027,3]
[330688628,1719711062428,-500.0,0.00014027,3]
[330688629,1719711062438,-500.0,0.00014027,3]
[330688630,1719711062447,-1012.12,0.00014027,3]
[330688631,1719711062457,-500.0,0.00014027,3]
[330688632,1719711062466,-805.69,0.00014027,3]
[330688633,1719711062476,-728.19,0.00014027,3]
[330688634,1719711062485,-500.75,0.00014027,3]
[330688635,1719711062495,-500.0,0.00014027,3]
[330688636,1719711062504,-1145.72,0.00014027,3]
[330688637,1719711062514,-500.0,0.00014027,3]
[330688638,1719711062524,-636.14,0.00014027,3]
[330688639,1719711062534,-500.0,0.00014027,3]
[330688640,1719711062543,-500.0,0.00014027,3]
[330688641,1719711062552,-959.16,0.00014027,3]
[330688642,1719711062566,-500.0,0.00014027,3]
[330688643,1719711062576,-532.97,0.00014027,3]
[330688644,1719711062585,-726.22,0.00014027,3]
[330688645,1719711062598,-500.0,0.00014027,3]
[330688646,1719711062609,-796.05,0.00014027,3]
[330688647,1719711062619,-500.0,0.00014027,3]
[330688648,1719711062629,-500.0,0.00014027,3]
[330688649,1719711062639,-500.0,0.00014027,3]
[330688650,1719711062649,-500.0,0.00014027,3]
[330688651,1719711062659,-500.0,0.00014027,3]
[330688652,1719711062669,-500.0,0.00014027,3]
[330688653,1719711062682,-500.0,0.00014027,3]
[330688654,1719711062693,-500.0,0.00014027,3]
[330688655,1719711062702,-500.0,0.00014027,3]
[330688656,1719711062712,-1185.2,0.00014027,3]
[330688657,1719711062722,-468.15305277,0.00014027,3]
[330688658,1719711062732,-500.0,0.00014027,3]
[330688659,1719711062742,-500.0,0.00014027,3]
[330688660,1719711062752,-583.84,0.00014027,3]
[330688661,1719711062762,-500.0,0.00014027,3]
[330688662,1719711062772,-296.18,0.00014027,3]
[330688663,1719711062782,-500.0,0.00014027,3]
[330688664,1719711062792,-352.10724389,0.00014027,3]
[330688665,1719711062802,-2306.38,0.00014027,3]
[330688666,1719711062812,-712.33,0.00014027,3]
[330688667,1719711062822,-500.0,0.00014027,3]
[330688668,1719711062831,-500.0,0.00014027,3]
[330688669,1719711062841,-500.0,0.00014027,3]
[330688670,1719711062851,-500.0,0.00014027,3]
[330688671,1719711062861,-567.32,0.00014027,3]
[330688672,1719711062871,-1188.2,0.00014027,3]
[330688673,1719711062881,-500.0,0.00014027,3]
[330688674,1719711062894,-500.0,0.00014027,3]
[330688675,1719711062905,-500.0,0.00014027,3]
[330688676,1719711062914,-500.0,0.00014027,3]
[330688677,1719711062925,-500.0,0.00014027,3]
[330688678,1719711062935,-1071.25,0.00014027,3]
[330688679,1719711062946,-500.0,0.00014027,3]
[330688680,1719711062955,-791.93,0.00014027,3]
[330688681,1719711062964,-708.58,0.00014027,3]
[330688682,1719711062974,-549.76,0.00014027,3]
[330688683,1719711062984,-500.0,0.00014027,3]
[330688684,1719711062994,-759.26,0.00014027,3]
[330688685,1719711063004,-538.9,0.00014027,3]
[330688686,1719711063013,-500.0,0.00014027,3]
[330688687,1719711063023,-500.0,0.00014027,3]
[330688688,1719711063033,-500.0,0.00014027,3]
[330688689,1719711063044,-500.0,0.00014027,3]
[330688690,1719711063053,-500.0,0.00014027,3]
[330688691,1719711063063,-500.0,0.00014027,3]
[330688692,1719711063074,-500.0,0.00014027,3]
[330688693,1719711063087,-608.49,0.00014027,3]
[330688694,1719711063097,-660.44,0.00014027,3]
[330688695,1719711063107,-500.0,0.00014027,3]
[330688696,1719711063116,-2629.63,0.00014027,3]
[330688697,1719711063126,-500.0,0.00014027,3]
[330688698,1719711063135,-500.0,0.00014027,3]
[330688699,1719711063146,-1298.08,0.00014027,3]
[330688700,1719711063155,-500.0,0.00014027,3]
[330688701,1719711063165,-721.44,0.00014027,3]
[330688702,1719711063175,-500.0,0.00014027,3]
[330688703,1719711063185,-551.41,0.00014027,3]
[330688704,1719711063194,-945.69,0.00014027,3]
[330688705,1719711063204,-525.15,0.00014027,3]
[330688706,1719711063214,-500.0,0.00014027,3]
[330688707,1719711063224,-1708.5,0.00014027,3]
[330688708,1719711063233,-1393.7,0.00014027,3]
[330688709,1719711063243,-781.98,0.00014027,3]
[330688710,1719711063252,-686.06,0.00014027,3]
[330688711,1719711063262,-500.0,0.00014027,3]
[330688712,1719711063272,-500.0,0.00014027,3]
[330688713,1719711063281,-500.0,0.00014027,3]
[330688714,1719711063291,-574.91,0.00014027,3]
[330688715,1719711063301,-500.0,0.00014027,3]
[330688716,1719711063310,-1608.03,0.00014027,3]
[330688717,1719711063321,-528.62191966,0.00014027,3]
[330688718,1719711063330,-500.0,0.00014027,3]
[330688719,1719711063340,-223.51424504,0.00014027,3]
[330688720,1719711063349,-500.0,0.00014027,3]
[330688721,1719711063359,-500.0,0.00014027,3]
[330688722,1719711063369,-679.33,0.00014027,3]
[330688723,1719711063379,-500.0,0.00014027,3]
[330688724,1719711063388,-500.0,0.00014027,3]
[330688725,1719711063399,-500.0,0.00014027,3]
[330688726,1719711063408,-500.0,0.00014027,3]
[330688727,1719711063422,-500.0,0.00014027,3]
[330688728,1719711063431,-899.57,0.00014027,3]
[330688729,1719711063441,-500.0,0.00014027,3]
[330688730,1719711063451,-4351.69,0.00014027,3]
[330688731,1719711063460,-590.76,0.00014027,3]
[330688732,1719711063470,-500.0,0.00014027,3]
[330688733,1719711063479,-500.0,0.00014027,3]
[330688734,1719711063489,-500.0,0.00014027,3]
[330688735,1719711063498,-581.58,0.00014027,3]
[330688736,1719711063508,-719.02,0.00014027,3]
[330688737,1719711063518,-500.0,0.00014027,3]
[330688738,1719711063527,-500.0,0.00014027,3]
[330688739,1719711063537,-680.73,0.00014027,3]